fUSD/lending_fUSD_20260517
["ID","MTS","AMOUNT","RATE_DAILY","PERIOD"]
[422468955,1778970658000,-2253.194383,0.0004038,7]
[422468958,1778970658000,-157.143938,0.0004038,30]
[422468956,1778970658000,-2253.194383,0.0004038,7]
[422468954,1778970658000,-2253.194383,0.0004038,7]
[422468950,1778970658000,-184.204153,0.0004038,30]
[422468957,1778970658000,-2253.194383,0.0004038,7]
[422468960,1778970658000,-157.143938,0.0004038,30]
[422468974,1778970658000,-220.04375989,0.0004038,2]
[422468959,1778970658000,-157.143938,0.0004038,30]
[422468966,1778970658000,-6000.0,0.0004038,2]
[422468962,1778970658000,-127233.50759143,0.0004038,2]
[422468970,1778970658000,-677.92215431,0.0004038,2]
[422468964,1778970658000,-234.48823271,0.0004038,2]
[422468967,1778970658000,-384.42532084,0.0004038,2]
[422468965,1778970658000,-177.9573668,0.0004038,2]
[422468968,1778970658000,-1309.63601111,0.0004038,2]
[422468973,1778970658000,-641.8599846,0.0004038,2]
[422468971,1778970658000,-8001.28368077,0.0004038,2]
[422468969,1778970658000,-1058.31306026,0.0004038,2]
[422468972,1778970658000,-744.10720129,0.0004038,2]
[422468975,1778970658000,-1093.04802622,0.0004038,2]
[422468963,1778970658000,-15346.44166282,0.0004038,2]
[422469006,1778970658000,-898.05847631,0.0004038,2]
[422469020,1778970658000,-379.0,0.0004038,2]
[422469007,1778970658000,-472.11674602,0.0004038,2]
[422469047,1778970658000,-10994.84029711,0.0004038,3]
[422469046,1778970658000,-585.27886169,0.0004038,5]
[422469044,1778970658000,-1034.0,0.0004038,30]
[422469042,1778970658000,-3000.0,0.0004038,30]
[422469043,1778970658000,-1049.0,0.0004038,30]
[422469045,1778970658000,-63236.14890179,0.0004038,30]
[422469037,1778970658000,-480.0,0.0004038,120]
[422469049,1778970658000,-3945.78066439,0.0004038,12]
[422469050,1778970658000,-1014.76319398,0.0004038,5]
[422469048,1778970658000,-2062.48118957,0.0004038,5]
[422469051,1778970658000,-15899.18260911,0.0004038,3]
[422469055,1778970658000,-15413.41865347,0.0004038,3]
[422469008,1778970658000,-150.0,0.0004038,2]
[422469041,1778970658000,-261.51838623,0.0004038,60]
[422469054,1778970658000,-1221.0,0.0004038,4]
[422469053,1778970658000,-500.0,0.0004038,5]
[422469058,1778970658000,-501.81935908,0.0004038,3]
[422469057,1778970658000,-32023.79051133,0.0004038,5]
[422469059,1778970658000,-227.0606349,0.0004038,5]
[422469061,1778970658000,-1123.3189813,0.0004038,5]
[422469062,1778970658000,-7047.62573168,0.0004038,4]
[422469063,1778970658000,-21379.26154505,0.0004038,10]
[422469060,1778970658000,-43069.5402695,0.0004038,5]
[422469065,1778970658000,-506.78881086,0.0004038,5]
[422469066,1778970658000,-10000.0,0.0004038,3]
[422469064,1778970658000,-5392.48688469,0.0004038,4]
[422469067,1778970658000,-78753.03478843,0.0004038,14]
[422469068,1778970658000,-1500.0,0.0004038,10]
[422469052,1778970658000,-600.0,0.0004038,5]
[422469039,1778970658000,-480.0,0.0004038,120]
[422469056,1778970658000,-2035.81546399,0.0004038,4]
[422469038,1778970658000,-480.0,0.0004038,120]
[422469010,1778970658000,-12987.16707575,0.0004038,2]
[422469040,1778970658000,-500.0,0.0004038,120]
[422469011,1778970658000,-363.21936539,0.0004038,2]
[422469012,1778970658000,-518.83325754,0.0004038,2]
[422469022,1778970658000,-468.34215679,0.0004038,2]
[422469014,1778970658000,-761.22954177,0.0004038,2]
[422469013,1778970658000,-204.46380448,0.0004038,2]
[422469015,1778970658000,-1028.62100538,0.0004038,2]
[422469021,1778970658000,-20000.0,0.0004038,2]
[422469016,1778970658000,-13722.82393047,0.0004038,2]
[422469017,1778970658000,-201.52539022,0.0004038,2]
[422469019,1778970658000,-1530.97416957,0.0004038,2]
[422469034,1778970658000,-261.51838624,0.0004038,60]
[422469018,1778970658000,-1868.55106984,0.0004038,7]
[422469035,1778970658000,-261.51838624,0.0004038,60]
[422469032,1778970658000,-547.949999,0.0004038,2]
[422469024,1778970658000,-1603.50127946,0.0004038,2]
[422469030,1778970658000,-12784.58042346,0.0004038,2]
[422469026,1778970658000,-180.0,0.0004038,2]
[422469036,1778970658000,-480.0,0.0004038,120]
[422469029,1778970658000,-1990.0,0.0004038,2]
[422469028,1778970658000,-500.0,0.0004038,2]
[422469031,1778970658000,-318.50034067,0.0004038,2]
[422469027,1778970658000,-5422.98469611,0.0004038,2]
[422469025,1778970658000,-1267.43025548,0.0004038,10]
[422469023,1778970658000,-160.73981071,0.0004038,2]
[422469033,1778970658000,-246.09296289,0.0004038,120]
[422469122,1778970659000,-569.00017186,0.00040391,120]
[422469111,1778970659000,-160.0,0.0004038,2]
[422469121,1778970659000,-151.0,0.00040381,30]
[422469114,1778970659000,-448.43651,0.00040381,30]
[422469117,1778970659000,-240.725161,0.00040381,30]
[422469103,1778970659000,-160.0,0.0004038,2]
[422469102,1778970659000,-160.0,0.0004038,2]
[422469105,1778970659000,-160.0,0.0004038,2]
[422469104,1778970659000,-160.0,0.0004038,2]
[422469101,1778970659000,-160.0,0.0004038,2]
[422469116,1778970659000,-448.43651,0.00040381,30]
[422469098,1778970659000,-160.0,0.0004038,2]
[422469106,1778970659000,-160.0,0.0004038,2]
[422469110,1778970659000,-528.4543528,0.0004038,2]
[422469135,1778970659000,-3133.77490464,0.0004049,2]
[422469119,1778970659000,-151.0,0.00040381,30]
[422469112,1778970659000,-577.0,0.00040381,120]
[422469113,1778970659000,-448.43651,0.00040381,30]
[422469120,1778970659000,-240.725161,0.00040381,30]
[422469118,1778970659000,-240.725161,0.00040381,30]
[422469124,1778970659000,-151.0,0.0004041,14]
[422469123,1778970659000,-2500.0,0.000404,120]
[422469129,1778970659000,-1830.08120038,0.00040413,120]
[422469126,1778970659000,-212.0,0.00040413,120]
[422469134,1778970659000,-535.0,0.00040486,16]
[422469133,1778970659000,-164.0,0.00040413,120]
[422469125,1778970659000,-740.0,0.00040412,120]
[422469130,1778970659000,-495.59196105,0.00040413,120]
[422469108,1778970659000,-160.0,0.0004038,2]
[422469115,1778970659000,-448.43651,0.00040381,30]
[422469099,1778970659000,-160.0,0.0004038,2]
[422469080,1778970659000,-160.0,0.0004038,2]
[422469107,1778970659000,-160.0,0.0004038,2]
[422469131,1778970659000,-691.0,0.00040413,120]
[422469070,1778970659000,-335.75334376,0.0004038,14]
[422469069,1778970659000,-1500.0,0.0004038,10]
[422469072,1778970659000,-1000.0,0.0004038,30]
[422469071,1778970659000,-403.64797392,0.0004038,120]
[422469073,1778970659000,-399.56,0.0004038,120]
[422469075,1778970659000,-160.0,0.0004038,2]
[422469074,1778970659000,-500.0,0.0004038,120]
[422469079,1778970659000,-160.0,0.0004038,2]
[422469076,1778970659000,-160.0,0.0004038,2]
[422469078,1778970659000,-160.0,0.0004038,2]
[422469081,1778970659000,-1122.160001,0.0004038,2]
[422469077,1778970659000,-160.0,0.0004038,2]
[422469084,1778970659000,-1210.0,0.0004038,2]
[422469082,1778970659000,-172417.2810401,0.0004038,2]
[422469085,1778970659000,-31246.8116551,0.0004038,2]
[422469086,1778970659000,-237374.4977835,0.0004038,2]
[422469092,1778970659000,-11000.72280963,0.0004038,2]
[422469093,1778970659000,-38075.16171819,0.0004038,2]
[422469083,1778970659000,-125452.45905061,0.0004038,2]
[422469087,1778970659000,-269681.86100262,0.0004038,2]
[422469094,1778970659000,-10119.88479535,0.0004038,2]
[422469090,1778970659000,-15196.92839118,0.0004038,2]
[422469091,1778970659000,-550.0,0.0004038,2]
[422469095,1778970659000,-170.64,0.0004038,2]
[422469088,1778970659000,-3327.58289185,0.0004038,2]
[422469097,1778970659000,-160.0,0.0004038,2]
[422469109,1778970659000,-322.16,0.0004038,2]
[422469100,1778970659000,-160.0,0.0004038,2]
[422469096,1778970659000,-160.0,0.0004038,2]
[422469127,1778970659000,-151.0,0.00040413,120]
[422469089,1778970659000,-179.91908229,0.0004038,2]
[422469128,1778970659000,-2000.0,0.00040413,120]
[422469174,1778970659000,-2500.0,0.00041,120]
[422469172,1778970659000,-926.0,0.00040969,2]
[422469171,1778970659000,-1223.0,0.00040969,2]
[422469165,1778970659000,-1525.0,0.00040875,2]
[422469166,1778970659000,-229.81323842,0.000409,30]
[422469168,1778970659000,-350.0,0.00040937,4]
[422469175,1778970659000,-1000.0,0.00041,120]
[422469178,1778970659000,-299999.9999991,0.00041,10]
[422469188,1778970659000,-500.0,0.00041,2]
[422469189,1778970659000,-500.0,0.00041,2]
[422469190,1778970659000,-500.0,0.00041,2]
[422469179,1778970659000,-195.921761,0.00041,30]
[422469182,1778970659000,-500.0,0.00041,2]
[422469177,1778970659000,-58020.50665431,0.00041,5]
[422469169,1778970659000,-1585.0,0.00040946,11]
[422469180,1778970659000,-199.938051,0.00041,30]
[422469181,1778970659000,-500.0,0.00041,2]
[422469185,1778970659000,-500.0,0.00041,2]
[422469184,1778970659000,-500.0,0.00041,2]
[422469183,1778970659000,-500.0,0.00041,2]
[422469187,1778970659000,-500.0,0.00041,2]
[422469186,1778970659000,-500.0,0.00041,2]
[422469191,1778970659000,-500.0,0.00041,2]
[422469193,1778970659000,-500.0,0.00041,2]
[422469194,1778970659000,-500.0,0.00041,2]
[422469195,1778970659000,-757.0,0.00041,2]
[422469192,1778970659000,-500.0,0.00041,2]
[422469197,1778970659000,-535.0,0.0004102,17]
[422469196,1778970659000,-1089.0,0.00041014,2]
[422469132,1778970659000,-274.0,0.00040413,120]
[422469198,1778970659000,-3133.77490464,0.00041026,2]
[422469170,1778970659000,-2312.0,0.00040946,11]
[422469199,1778970659000,-1450.4,0.00041041,120]
[422469164,1778970659000,-1743.86843543,0.00040875,2]
[422469136,1778970659000,-163.0,0.00040513,11]
[422469176,1778970659000,-1019.01344326,0.00041,120]
[422469149,1778970659000,-152.0,0.000407,120]
[422469139,1778970659000,-150.80364039,0.00040518,120]
[422469143,1778970659000,-151.0,0.00040579,30]
[422469138,1778970659000,-150.8036404,0.00040518,120]
[422469148,1778970659000,-2500.0,0.000407,120]
[422469141,1778970659000,-150.0,0.00040548,2]
[422469140,1778970659000,-3133.77490464,0.00040528,2]
[422469144,1778970659000,-569.00017186,0.00040579,120]
[422469145,1778970659000,-3133.77490464,0.00040586,2]
[422469146,1778970659000,-500.0,0.0004059,120]
[422469142,1778970659000,-3133.77490464,0.00040561,2]
[422469147,1778970659000,-569.00017186,0.00040642,120]
[422469151,1778970659000,-163.0,0.00040741,11]
[422469137,1778970659000,-1934.38338737,0.00040517,30]
[422469162,1778970659000,-3133.77490464,0.00040845,2]
[422469173,1778970659000,-6054.0,0.00040969,2]
[422469161,1778970659000,-70905.0,0.00040807,120]
[422469155,1778970659000,-200.0,0.00040773,2]
[422469156,1778970659000,-200.0,0.00040773,2]
[422469157,1778970659000,-2104.65,0.00040785,2]
[422469159,1778970659000,-20062.67750457,0.000408,30]
[422469167,1778970659000,-160.0,0.000409,53]
[422469160,1778970659000,-1034.72,0.000408,120]
[422469152,1778970659000,-5908.877031,0.00040747,2]
[422469154,1778970659000,-200.0,0.00040773,2]
[422469163,1778970659000,-3133.77490464,0.00040847,2]
[422469158,1778970659000,-150.8036404,0.00040792,120]
[422469153,1778970659000,-200.0,0.00040773,2]
[422469150,1778970659000,-200.0,0.0004071,30]
[422469239,1778970660000,-1000.0,0.00041096,120]
[422469237,1778970660000,-1000.0,0.00041096,120]
[422469232,1778970660000,-1000.0,0.00041096,120]
[422469234,1778970660000,-1000.0,0.00041096,120]
[422469235,1778970660000,-1000.0,0.00041096,120]
[422469238,1778970660000,-1000.0,0.00041096,120]
[422469236,1778970660000,-1000.0,0.00041096,120]
[422469241,1778970660000,-1000.0,0.00041096,120]
[422469240,1778970660000,-1000.0,0.00041096,120]
[422469230,1778970660000,-222.0,0.00041096,30]
[422469233,1778970660000,-1000.0,0.00041096,120]
[422469243,1778970660000,-7104.191757,0.00041096,14]
[422469254,1778970660000,-7104.191757,0.00041096,14]
[422469249,1778970660000,-7104.191757,0.00041096,14]
[422469247,1778970660000,-7104.191757,0.00041096,14]
[422469246,1778970660000,-7104.191757,0.00041096,14]
[422469248,1778970660000,-7104.191757,0.00041096,14]
[422469250,1778970660000,-7104.191757,0.00041096,14]
[422469245,1778970660000,-7104.191757,0.00041096,14]
[422469256,1778970660000,-4540.07642349,0.00041096,120]
[422469251,1778970660000,-7104.191757,0.00041096,14]
[422469253,1778970660000,-7104.191757,0.00041096,14]
[422469252,1778970660000,-7104.191757,0.00041096,14]
[422469255,1778970660000,-374.89642349,0.00041096,60]
[422469258,1778970660000,-152.0,0.000411,120]
[422469242,1778970660000,-1000.0,0.00041096,120]
[422469269,1778970660000,-163.16738822,0.00041222,120]
[422469244,1778970660000,-7104.191757,0.00041096,14]
[422469231,1778970660000,-1000.0,0.00041096,120]
[422469212,1778970660000,-1255.49,0.00041095,30]
[422469227,1778970660000,-308.0,0.00041096,30]
[422469268,1778970660000,-215.03962261,0.000412,10]
[422469201,1778970660000,-3133.77490464,0.00041075,2]
[422469200,1778970660000,-150.8036404,0.00041066,120]
[422469203,1778970660000,-1255.49,0.00041095,30]
[422469202,1778970660000,-1255.49,0.00041095,30]
[422469205,1778970660000,-1255.49,0.00041095,30]
[422469215,1778970660000,-1255.49,0.00041095,30]
[422469204,1778970660000,-1255.49,0.00041095,30]
[422469206,1778970660000,-1255.49,0.00041095,30]
[422469207,1778970660000,-1255.49,0.00041095,30]
[422469209,1778970660000,-1255.49,0.00041095,30]
[422469216,1778970660000,-1255.49,0.00041095,30]
[422469208,1778970660000,-1255.49,0.00041095,30]
[422469210,1778970660000,-1255.49,0.00041095,30]
[422469214,1778970660000,-1255.49,0.00041095,30]
[422469213,1778970660000,-1255.49,0.00041095,30]
[422469217,1778970660000,-1255.49,0.00041095,30]
[422469221,1778970660000,-1255.49,0.00041095,30]
[422469220,1778970660000,-1255.49,0.00041095,30]
[422469219,1778970660000,-1255.49,0.00041095,30]
[422469218,1778970660000,-1255.49,0.00041095,30]
[422469228,1778970660000,-189.0,0.00041096,30]
[422469226,1778970660000,-200.0,0.00041096,30]
[422469223,1778970660000,-1255.49,0.00041095,30]
[422469229,1778970660000,-251.0,0.00041096,30]
[422469224,1778970660000,-1255.49,0.00041095,30]
[422469225,1778970660000,-1255.59,0.00041095,30]
[422469222,1778970660000,-1255.49,0.00041095,30]
[422469266,1778970660000,-200.0,0.00041181,2]
[422469211,1778970660000,-1255.49,0.00041095,30]
[422469262,1778970660000,-3133.77490464,0.00041164,2]
[422469291,1778970660000,-691.0,0.00041413,120]
[422469296,1778970660000,-344118.04,0.00041481,6]
[422469298,1778970660000,-28033.19,0.00041481,6]
[422469301,1778970660000,-535.0,0.00041554,17]
[422469300,1778970660000,-3980.91787391,0.000415,120]
[422469299,1778970660000,-403312.79,0.00041481,6]
[422469297,1778970660000,-11584.81,0.00041481,6]
[422469302,1778970660000,-150.0,0.00041558,120]
[422469304,1778970660000,-1801.67,0.00041579,2]
[422469306,1778970660000,-199.293253,0.00041579,120]
[422469305,1778970660000,-199.293253,0.00041579,120]
[422469307,1778970660000,-199.293253,0.00041579,120]
[422469303,1778970660000,-200.0,0.0004157,30]
[422469310,1778970660000,-2123.786567,0.00041579,120]
[422469316,1778970660000,-195.276238,0.00041579,120]
[422469313,1778970660000,-195.276238,0.00041579,120]
[422469309,1778970660000,-2123.786567,0.00041579,120]
[422469311,1778970660000,-2123.786567,0.00041579,120]
[422469314,1778970660000,-195.276238,0.00041579,120]
[422469312,1778970660000,-2123.786567,0.00041579,120]
[422469315,1778970660000,-195.276238,0.00041579,120]
[422469318,1778970660000,-1801.68,0.00041579,2]
[422469317,1778970660000,-1801.68,0.00041579,2]
[422469319,1778970660000,-1801.68,0.00041579,2]
[422469320,1778970660000,-163.0,0.00041589,11]
[422469321,1778970660000,-200.0,0.00041593,2]
[422469260,1778970660000,-3133.77490464,0.0004113,2]
[422469295,1778970660000,-2104.66,0.0004147,2]
[422469287,1778970660000,-151.0,0.000414,120]
[422469308,1778970660000,-199.293253,0.00041579,120]
[422469293,1778970660000,-164.0,0.00041413,120]
[422469257,1778970660000,-161.64,0.000411,30]
[422469264,1778970660000,-200.0,0.00041181,2]
[422469259,1778970660000,-3133.77490464,0.00041116,2]
[422469263,1778970660000,-500.0,0.00041178,120]
[422469261,1778970660000,-425.66447431,0.0004115,120]
[422469288,1778970660000,-740.0,0.00041412,120]
[422469267,1778970660000,-200.0,0.00041181,2]
[422469271,1778970660000,-261.51838624,0.00041239,60]
[422469281,1778970660000,-151.0,0.0004138,120]
[422469270,1778970660000,-299.98309775,0.00041239,60]
[422469273,1778970660000,-155.0,0.00041291,120]
[422469272,1778970660000,-162.8,0.0004128,120]
[422469274,1778970660000,-418.0,0.00041291,120]
[422469282,1778970660000,-50000.0,0.0004138,50]
[422469265,1778970660000,-200.0,0.00041181,2]
[422469278,1778970660000,-3133.77490464,0.00041334,2]
[422469275,1778970660000,-152.0,0.00041291,120]
[422469290,1778970660000,-151.0,0.00041413,120]
[422469289,1778970660000,-212.0,0.00041413,120]
[422469285,1778970660000,-500.0,0.0004138,120]
[422469294,1778970660000,-164.32,0.00041429,30]
[422469284,1778970660000,-50000.0,0.0004138,52]
[422469292,1778970660000,-274.0,0.00041413,120]
[422469283,1778970660000,-50000.0,0.0004138,51]
[422469280,1778970660000,-167.0,0.0004138,120]
[422469279,1778970660000,-206.0,0.0004138,120]
[422469277,1778970660000,-2000.0,0.000413,7]
[422469276,1778970660000,-2500.0,0.000413,120]
[422469286,1778970660000,-577.0,0.00041381,120]
[422469339,1778970661000,-1402.46752,0.00041781,120]
[422469335,1778970661000,-167.32677,0.00041781,120]
[422469338,1778970661000,-167.32677,0.00041781,120]
[422469336,1778970661000,-167.32677,0.00041781,120]
[422469337,1778970661000,-167.32677,0.00041781,120]
[422469334,1778970661000,-35606.02476895,0.00041781,7]
[422469330,1778970661000,-1450.4,0.00041694,120]
[422469331,1778970661000,-4053.28,0.00041695,120]
[422469333,1778970661000,-557.16009719,0.00041781,7]
[422469322,1778970661000,-200.0,0.00041593,2]
[422469329,1778970661000,-3133.77490464,0.0004165,2]
[422469328,1778970661000,-350.0,0.00041644,2]
[422469326,1778970661000,-152.0,0.000416,120]
[422469327,1778970661000,-6783.99,0.0004163,2]
[422469324,1778970661000,-200.0,0.00041593,2]
[422469325,1778970661000,-2500.0,0.000416,120]
[422469323,1778970661000,-200.0,0.00041593,2]
[422469340,1778970661000,-157.278708,0.00041781,120]
[422469332,1778970661000,-500.0,0.00041726,120]
[422469344,1778970661000,-3133.77490464,0.00041791,2]
[422469353,1778970661000,-514.65386803,0.000419,2]
[422469343,1778970661000,-1402.46752,0.00041781,120]
[422469342,1778970661000,-1402.46752,0.00041781,120]
[422469363,1778970661000,-577.0,0.0003119,30]
[422469360,1778970661000,-2434.43,0.00013004,2]
[422469362,1778970661000,-577.0,0.0003019,30]
[422469359,1778970661000,-1894.42310382,0.000419,2]
[422469358,1778970661000,-974.33676083,0.000419,2]
[422469357,1778970661000,-469.73578931,0.000419,2]
[422469355,1778970661000,-1585.6253758,0.000419,2]
[422469356,1778970661000,-379.79690018,0.000419,2]
[422469354,1778970661000,-879.54028418,0.000419,2]
[422469361,1778970661000,-546.0,0.00029169,30]
[422469352,1778970661000,-592267.41976132,0.000419,2]
[422469345,1778970661000,-350.0,0.00041816,2]
[422469347,1778970661000,-163.0,0.00041886,11]
[422469346,1778970661000,-2312.0,0.00041886,11]
[422469341,1778970661000,-1402.46752,0.00041781,120]
[422469349,1778970661000,-2500.0,0.000419,120]
[422469348,1778970661000,-151.0,0.00041897,14]
[422469351,1778970661000,-12907.02796912,0.000419,2]
[422469350,1778970661000,-37616.0,0.000419,14]
[422469383,1778970662000,-300.0,0.00036365,2]
[422469384,1778970662000,-520.67233495,0.0004,30]
[422469388,1778970662000,-3825.15879888,0.000419,2]
[422469387,1778970662000,-784.56,0.000416,120]
[422469389,1778970662000,-665.86939559,0.000419,2]
[422469390,1778970662000,-5000.01,0.000419,2]
[422469391,1778970662000,-662.66163375,0.000419,2]
[422469394,1778970662000,-151.0,0.000419,60]
[422469396,1778970662000,-151.0,0.000419,120]
[422469406,1778970662000,-151.0,0.000419,120]
[422469393,1778970662000,-160.0,0.000419,58]
[422469395,1778970662000,-151.428047,0.000419,30]
[422469397,1778970662000,-151.428047,0.000419,30]
[422469409,1778970662000,-284.289204,0.000419,120]
[422469401,1778970662000,-151.428047,0.000419,30]
[422469381,1778970662000,-151.0,0.00035955,7]
[422469392,1778970662000,-384337.17083989,0.000419,2]
[422469386,1778970662000,-151.0,0.00040381,30]
[422469373,1778970662000,-151.0,0.00040381,30]
[422469382,1778970662000,-300.0,0.00036365,2]
[422469398,1778970662000,-151.0,0.000419,20]
[422469366,1778970662000,-300.0,0.00036365,2]
[422469365,1778970662000,-151.0,0.00035955,7]
[422469367,1778970662000,-300.0,0.00036365,2]
[422469364,1778970662000,-215.03962261,0.00033,7]
[422469369,1778970662000,-350.0,0.00038767,5]
[422469368,1778970662000,-350.0,0.00037808,5]
[422469370,1778970662000,-240.725161,0.0004,30]
[422469374,1778970662000,-358469.46982531,0.000419,2]
[422469375,1778970662000,-8809.73756925,0.000419,2]
[422469372,1778970662000,-240.725161,0.00040381,30]
[422469371,1778970662000,-151.0,0.0004,30]
[422469377,1778970662000,-8943.78386462,0.000419,2]
[422469378,1778970662000,-9077.54866152,0.000419,2]
[422469376,1778970662000,-8947.21879473,0.000419,2]
[422469380,1778970662000,-577.0,0.0003319,30]
[422469379,1778970662000,-577.0,0.0003219,30]
[422469385,1778970662000,-151.0,0.0004,30]
[422469400,1778970662000,-151.428047,0.000419,30]
[422469438,1778970662000,-1734.61950838,0.00025886,2]
[422469408,1778970662000,-151.933482,0.000419,10]
[422469427,1778970662000,-279.30719,0.000419,28]
[422469431,1778970662000,-305.660067,0.000419,120]
[422469429,1778970662000,-279.30719,0.000419,28]
[422469428,1778970662000,-279.30719,0.000419,28]
[422469425,1778970662000,-374.778137,0.000419,120]
[422469432,1778970662000,-305.660067,0.000419,120]
[422469430,1778970662000,-279.30719,0.000419,28]
[422469433,1778970662000,-305.660067,0.000419,120]
[422469435,1778970662000,-538.87644395,0.000419,14]
[422469434,1778970662000,-536.38164603,0.000419,14]
[422469436,1778970662000,500.0,0.00010605,2]
[422469437,1778970662000,-1180.95304529,0.00025886,2]
[422469439,1778970662000,-715.42744633,0.00025886,2]
[422469402,1778970662000,-151.0,0.000419,120]
[422469440,1778970662000,-3631.0,0.00028886,2]
[422469442,1778970662000,-341.68629724,0.00028905,10]
[422469443,1778970662000,-723.27390214,0.00028905,10]
[422469424,1778970662000,-374.778137,0.000419,120]
[422469426,1778970662000,-928.94463276,0.000419,5]
[422469441,1778970662000,-8867.55993558,0.00028905,10]
[422469422,1778970662000,-374.778137,0.000419,120]
[422469423,1778970662000,-374.778137,0.000419,120]
[422469399,1778970662000,-151.0,0.000419,120]
[422469405,1778970662000,-151.0,0.000419,120]
[422469403,1778970662000,-151.0,0.000419,120]
[422469404,1778970662000,-151.0,0.000419,120]
[422469410,1778970662000,-284.289204,0.000419,120]
[422469412,1778970662000,-284.289204,0.000419,120]
[422469411,1778970662000,-284.289204,0.000419,120]
[422469407,1778970662000,-253.527364,0.000419,120]
[422469413,1778970662000,-151.0,0.000419,120]
[422469414,1778970662000,-28547.33665151,0.000419,2]
[422469421,1778970662000,-1000.0,0.000419,120]
[422469416,1778970662000,-261.1828,0.000419,120]
[422469417,1778970662000,-160.254854,0.000419,58]
[422469419,1778970662000,-1000.0,0.000419,120]
[422469418,1778970662000,-1000.0,0.000419,120]
[422469420,1778970662000,-1000.0,0.000419,120]
[422469415,1778970662000,-9755.17149277,0.000419,10]
[422469444,1778970663000,577.0,0.0002,2]
[422469445,1778970663000,577.0,0.00021,2]
[422469447,1778970663000,577.0,0.00023,2]
[422469448,1778970663000,577.0,0.00024,2]
[422469446,1778970663000,577.0,0.00022,2]
[422469450,1778971022000,167.83,9.923e-05,2]
[422469457,1778971831000,-192.99668422,0.00012207,2]
[422469465,1778971831000,-399.56,0.000124,2]
[422469456,1778971831000,-1758.875417,0.00012146,2]
[422469459,1778971831000,-200.0,0.00012307,2]
[422469458,1778971831000,-154.68827339,0.00012207,2]
[422469460,1778971831000,-500.0,0.00012359,2]
[422469462,1778971831000,-1200.0,0.00012365,2]
[422469461,1778971831000,-300.0,0.00012365,2]
[422469467,1778971831000,-328.49,0.00012502,2]
[422469474,1778971831000,-347.6849576,0.00012767,2]
[422469463,1778971831000,-19643.86,0.00012366,2]
[422469466,1778971831000,-386.35714101,0.00012452,2]
[422469469,1778971831000,-3358.88,0.00012529,2]
[422469468,1778971831000,-150.0,0.00012523,2]
[422469470,1778971831000,-3222.58,0.0001256,2]
[422469471,1778971831000,-150.0,0.00012599,2]
[422469473,1778971831000,-1852.42,0.00012709,2]
[422469472,1778971831000,-150.0,0.00012647,2]
[422469475,1778971831000,-1043.18,0.00012797,2]
[422469464,1778971831000,-250.0,0.00012369,2]
[422469485,1778971832000,-2000.0,0.0001313,2]
[422469484,1778971832000,-167.83,0.00013101,2]
[422469488,1778971832000,-2035.43,0.00013426,2]
[422469492,1778971832000,-167.37842771,0.00013521,2]
[422469490,1778971832000,-4196.40221699,0.00013501,2]
[422469483,1778971832000,-2035.43,0.00013099,2]
[422469487,1778971832000,-347.6849576,0.00013327,2]
[422469480,1778971832000,-499.99,0.00012893,2]
[422469481,1778971832000,-9999.99,0.00012893,2]
[422469479,1778971832000,-9999.99,0.00012893,2]
[422469476,1778971832000,-1195.86,0.00012893,2]
[422469478,1778971832000,-999.99,0.00012893,2]
[422469477,1778971832000,-9306.53,0.00012893,2]
[422469482,1778971832000,-2792.2,0.00012893,2]
[422469486,1778971832000,-9235.73,0.00013176,2]